fUSD/lending_fUSD_20240216
["ID","MTS","AMOUNT","RATE_DAILY","PERIOD"]
[314184931,1708053041617,-78274.15881557,0.0003882,3]
[314184932,1708053041627,-8339.23,0.0003882,2]
[314184934,1708053041637,-8339.23,0.0003882,2]
[314184935,1708053041647,-8339.23,0.0003882,2]
[314184936,1708053041657,-8339.23,0.0003882,2]
[314184937,1708053041666,-8339.23,0.0003882,2]
[314184938,1708053041675,-8339.23,0.0003882,2]
[314184939,1708053041685,-8339.23,0.0003882,2]
[314184940,1708053041694,-8339.23,0.0003882,2]
[314184941,1708053041703,-8339.23,0.0003882,2]
[314184942,1708053041712,-8339.23,0.0003882,2]
[314184943,1708053041721,-8339.23,0.0003882,2]
[314184944,1708053041731,-8339.23,0.0003882,2]
[314184945,1708053041740,-8339.23,0.0003882,2]
[314184946,1708053041750,-8339.23,0.0003882,2]
[314184947,1708053041760,-8339.23,0.0003882,2]
[314184948,1708053041770,-8339.26955437,0.0003882,2]
[314184949,1708053041779,-151.021624,0.00038848,24]
[314184950,1708053041788,-13842.7299,0.00038855,2]
[314184951,1708053041797,-151.0,0.00038873,2]
[314184952,1708053041806,-277.93,0.0003888,2]
[314184953,1708053041816,-152.42170121,0.0003888,2]
[314184954,1708053041825,-151.06206482,0.0003888,2]
[314184955,1708053041835,-4007.0,0.000389,7]
[314184956,1708053041844,-16655.36334903,0.000389,5]
[314184957,1708053041855,-175.0,0.000389,7]
[314184958,1708053041865,-1000.0,0.00038903,2]
[314184959,1708053041874,-1926.23,0.00038904,7]
[314184960,1708053041884,-217.14824301,0.00038904,7]
[314184961,1708053041893,-500.0,0.00038904,7]
[314184962,1708053041902,-500.0,0.00038904,7]
[314184963,1708053041911,-500.0,0.00038904,7]
[314184964,1708053041921,-500.0,0.00038904,7]
[314184965,1708053041930,-500.0,0.00038904,7]
[314184966,1708053041939,-500.0,0.00038904,7]
[314184967,1708053041948,-1321.96,0.00038904,7]
[314184968,1708053041958,-500.0,0.00038904,7]
[314184969,1708053041967,-597.90648904,0.00038904,7]
[314184970,1708053041977,-623.74,0.00038904,7]
[314184971,1708053041987,-500.0,0.00038904,7]
[314184972,1708053041996,-500.0,0.00038904,7]
[314184973,1708053042006,-633.03224068,0.00038904,7]
[314184974,1708053042016,-500.0,0.00038904,7]
[314184975,1708053042031,-500.0,0.00038904,7]
[314184976,1708053042041,-500.0,0.00038904,7]
[314184977,1708053042051,-500.0,0.00038904,7]
[314184978,1708053042061,-578.19,0.00038904,7]
[314184979,1708053042071,-580.17828646,0.00038904,7]
[314184980,1708053042080,-500.0,0.00038904,7]
[314184981,1708053042090,-203.63670306,0.00038904,7]
[314184982,1708053042101,-1023.77,0.00038904,7]
[314184983,1708053042111,-513.83439317,0.00038904,7]
[314184984,1708053042120,-500.0,0.00038904,7]
[314184985,1708053042130,-500.0,0.00038904,7]
[314184986,1708053042140,-500.0,0.00038904,7]
[314184987,1708053042150,-569.93,0.00038904,7]
[314184988,1708053042159,-5694.96,0.00038904,7]
[314184989,1708053042168,-500.0,0.00038904,7]
[314184990,1708053042178,-500.0,0.00038904,7]
[314184991,1708053042188,-5929.91,0.00038904,7]
[314184992,1708053042197,-331.00135467,0.00038904,7]
[314184993,1708053042207,-1139.26,0.00038904,7]
[314184994,1708053042217,-500.0,0.00038904,7]
[314184995,1708053042226,-500.0,0.00038904,7]
[314184996,1708053042237,-500.0,0.00038904,7]
[314184997,1708053042247,-500.0,0.00038904,7]
[314184998,1708053042256,-500.0,0.00038904,7]
[314184999,1708053042266,-857.1,0.00038904,7]
[314185000,1708053042275,-500.0,0.00038904,7]
[314185001,1708053042285,-500.0,0.00038904,7]
[314185002,1708053042294,-500.0,0.00038904,7]
[314185003,1708053042304,-500.0,0.00038904,7]
[314185004,1708053042313,-193.30826437,0.00038904,7]
[314185005,1708053042322,-500.0,0.00038904,7]
[314185006,1708053042331,-332.83541616,0.00038904,7]
[314185007,1708053042471,-519.9,0.00038904,7]
[314185008,1708053042483,-500.0,0.00038904,7]
[314185009,1708053042492,-228.87,0.00038914,2]
[314185010,1708053042502,-500.0,0.00038915,2]
[314185011,1708053042511,-75653.7244867,0.00038927,3]
[314185012,1708053042520,-55555.0,0.00038937,3]
[314185013,1708053042529,-151.021624,0.00038948,25]
[314185014,1708053042539,-453.84076438,0.00038955,9]
[314185015,1708053042548,-467.88239403,0.00038955,9]
[314185016,1708053042558,-206.0,0.00038962,8]
[314185017,1708053042568,-80000.0,0.00039,2]
[314185018,1708053042577,-500.0,0.00039027,2]
[314185019,1708053042586,-150.0,0.00039033,2]
[314185020,1708053042596,-175.0,0.00039037,7]
[314185021,1708053042605,-572.0,0.00039046,7]
[314185022,1708053042614,-342.0,0.00039046,7]
[314185023,1708053042624,-400.0,0.00039046,7]
[314185024,1708053042636,-150.0,0.00039046,7]
[314185025,1708053042646,-151.021624,0.00039048,25]
[314185026,1708053042655,-154.9644948,0.00039048,3]
[314185027,1708053042665,-178.59218148,0.00039078,12]
[314185028,1708053042674,-1000.0,0.00039078,2]
[314185029,1708053042683,-5000.0,0.00039078,3]
[314185030,1708053042693,-1011.0,0.000391,7]
[314185031,1708053042702,-75653.7244867,0.00039135,3]
[314185032,1708053042712,-500.0,0.00039139,2]
[314185033,1708053042722,-151.021624,0.00039148,24]
[314185034,1708053042733,-150.0,0.00039152,2]
[314185035,1708053042743,-175.0,0.00039174,7]
[314185036,1708053042753,-1926.23,0.00039178,7]
[314185037,1708053042762,-500.0,0.00039178,7]
[314185038,1708053042772,-500.0,0.00039178,7]
[314185039,1708053042781,-500.0,0.00039178,7]
[314185040,1708053042791,-500.0,0.00039178,7]
[314185041,1708053042801,-500.0,0.00039178,7]
[314185042,1708053042810,-500.0,0.00039178,7]
[314185043,1708053042820,-1321.96,0.00039178,7]
[314185044,1708053042830,-500.0,0.00039178,7]
[314185045,1708053042839,-623.74,0.00039178,7]
[314185046,1708053042849,-500.0,0.00039178,7]
[314185047,1708053042859,-500.0,0.00039178,7]
[314185048,1708053042868,-500.0,0.00039178,7]
[314185050,1708053042877,-500.0,0.00039178,7]
[314185052,1708053042889,-500.0,0.00039178,7]
[314185053,1708053042899,-578.19,0.00039178,7]
[314185054,1708053042909,-1023.77,0.00039178,7]
[314185055,1708053042919,-500.0,0.00039178,7]
[314185056,1708053042929,-500.0,0.00039178,7]
[314185057,1708053042938,-569.93,0.00039178,7]
[314185058,1708053042948,-5694.96,0.00039178,7]
[314185059,1708053042957,-500.0,0.00039178,7]
[314185060,1708053042967,-500.0,0.00039178,7]
[314185061,1708053042977,-5929.91,0.00039178,7]
[314185062,1708053042987,-1139.26,0.00039178,7]
[314185063,1708053042996,-500.0,0.00039178,7]
[314185064,1708053043005,-500.0,0.00039178,7]
[314185065,1708053043017,-500.0,0.00039178,7]
[314185066,1708053043031,-500.0,0.00039178,7]
[314185067,1708053043042,-500.0,0.00039178,7]
[314185068,1708053043052,-857.1,0.00039178,7]
[314185069,1708053043062,-500.0,0.00039178,7]
[314185070,1708053043071,-500.0,0.00039178,7]
[314185071,1708053043081,-500.0,0.00039178,7]
[314185072,1708053043090,-500.0,0.00039178,7]
[314185073,1708053043100,-500.0,0.00039178,7]
[314185074,1708053043110,-519.9,0.00039178,7]
[314185075,1708053043120,-500.0,0.00039178,7]
[314185076,1708053043130,-155.0,0.0003919,2]
[314185077,1708053043142,-1338.56975474,0.00039192,2]
[314185078,1708053043151,-1000.0,0.000392,2]
[314185079,1708053043160,-150.0,0.00039236,2]
[314185080,1708053043169,-150.0,0.00039239,2]
[314185081,1708053043178,-151.021624,0.00039248,24]
[314185082,1708053043187,-500.0,0.00039251,2]
[314185083,1708053043197,-213.76,0.0003926,2]
[314185084,1708053043206,-187.97347713,0.00039276,2]
[314185085,1708053043216,-1232.220869,0.000393,2]
[314185086,1708053043225,-1520.209279,0.000393,29]
[314185087,1708053043234,-175.0,0.00039311,7]
[314185088,1708053043243,-150.0,0.00039329,2]
[314185089,1708053043252,-2835.0,0.00039343,2]
[314185090,1708053043261,-953.0,0.00039343,2]
[314185091,1708053043270,-842.0,0.00039343,2]
[314185092,1708053043279,-216.0,0.00039343,2]
[314185093,1708053043288,-1254.0,0.00039343,2]
[314185094,1708053043297,-1231.0,0.00039343,2]
[314185095,1708053043306,-314.732,0.00039343,2]
[314185096,1708053043315,-429.0,0.00039343,2]
[314185097,1708053043325,-321.0,0.00039343,2]
[314185099,1708053043335,-150.0,0.00039343,2]
[314185100,1708053043345,-343.0,0.00039343,2]
[314185101,1708053043356,-454.0,0.00039343,2]
[314185102,1708053043367,-507.851,0.00039343,2]
[314185103,1708053043377,-150.0,0.00039343,2]
[314185104,1708053043389,-2289.0,0.00039343,2]
[314185105,1708053043398,-2927.0,0.00039343,2]
[314185106,1708053043407,-4060.0,0.00039343,2]
[314185107,1708053043416,-8164.0,0.00039343,2]
[314185108,1708053043426,-19846.0,0.00039343,2]
[314185109,1708053043435,-1037.0,0.00039343,2]
[314185110,1708053043445,-151.021624,0.00039348,24]
[314185111,1708053043454,-500.0,0.00039363,2]
[314185112,1708053043464,-150.0,0.00039386,2]
[314185113,1708053043474,-572.0,0.00039392,7]
[314185114,1708053043485,-342.0,0.00039392,7]
[314185115,1708053043494,-400.0,0.00039392,7]
[314185116,1708053043504,-150.0,0.00039392,7]
[314185117,1708053043513,-3009.0,0.000394,7]
[314185118,1708053043523,-1281.9686549,0.00039406,2]
[314185119,1708053043533,-150.0,0.00039423,2]
[314185120,1708053043542,-75653.7244867,0.00039442,4]
[314185121,1708053043552,-151.021624,0.00039448,25]
[314185122,1708053043563,-175.0,0.00039448,7]
[314185123,1708053043574,-500.0,0.00039451,10]
[314185124,1708053043585,-1926.23,0.00039452,7]
[314185125,1708053043594,-391.2440641,0.00039452,7]
[314185126,1708053043604,-500.0,0.00039452,7]
[314185127,1708053043618,-500.0,0.00039452,7]
[314185128,1708053043628,-500.0,0.00039452,7]
[314185129,1708053043638,-500.0,0.00039452,7]
[314185130,1708053043648,-500.0,0.00039452,7]
[314185131,1708053043658,-1321.96,0.00039452,7]
[314185132,1708053043667,-500.0,0.00039452,7]
[314185133,1708053043677,-623.74,0.00039452,7]
[314185134,1708053043686,-500.0,0.00039452,7]
[314185135,1708053043696,-392.89659545,0.00039452,7]
[314185136,1708053043706,-500.0,0.00039452,7]
[314185137,1708053043717,-382.77845556,0.00039452,7]
[314185138,1708053043727,-500.0,0.00039452,7]
[314185139,1708053043737,-578.19,0.00039452,7]
[314185140,1708053043747,-1023.77,0.00039452,7]
[314185141,1708053043757,-500.0,0.00039452,7]
[314185142,1708053043769,-500.0,0.00039452,7]
[314185143,1708053043778,-569.93,0.00039452,7]
[314185144,1708053043789,-5694.96,0.00039452,7]
[314185145,1708053043798,-500.0,0.00039452,7]
[314185146,1708053043807,-500.0,0.00039452,7]
[314185147,1708053043817,-5929.91,0.00039452,7]
[314185148,1708053043826,-1139.26,0.00039452,7]
[314185149,1708053043836,-500.0,0.00039452,7]
[314185150,1708053043844,-500.0,0.00039452,7]
[314185151,1708053043854,-500.0,0.00039452,7]
[314185152,1708053043863,-500.0,0.00039452,7]
[314185153,1708053043872,-500.0,0.00039452,7]
[314185154,1708053043881,-857.1,0.00039452,7]
[314185155,1708053043891,-500.0,0.00039452,7]
[314185156,1708053043901,-500.0,0.00039452,7]
[314185157,1708053043910,-500.0,0.00039452,7]
[314185158,1708053043919,-500.0,0.00039452,7]
[314185159,1708053043928,-500.0,0.00039452,7]
[314185160,1708053043937,-519.9,0.00039452,7]
[314185161,1708053043946,-500.0,0.00039452,7]
[314185162,1708053043960,-259.283563,0.00039452,14]
[314185163,1708053043972,-150.0,0.00039466,2]
[314185164,1708053043986,-500.0,0.00039474,2]
[314185165,1708053043999,-5000.0,0.0003948,7]
[314185166,1708053044014,-416.10621037,0.00039483,30]
[314185167,1708053044026,-767.34730536,0.00039483,2]
[314185168,1708053044037,-528.35207385,0.00039483,3]
[314185169,1708053044049,-1508.59599246,0.00039483,60]
[314185170,1708053044060,-13022.85395691,0.00039483,2]
[314185171,1708053044072,-155.27144867,0.00039483,120]
[314185172,1708053044084,-152.92544454,0.00039483,2]
[314185173,1708053044097,-647.12865825,0.00039483,30]
[314185174,1708053044110,-565.76432555,0.00039483,2]
[314185175,1708053044121,-2634.04514404,0.00039483,2]
[314185176,1708053044133,-292.42153541,0.00039483,30]
[314185177,1708053044148,-154.09038755,0.00039483,31]
[314185178,1708053044160,-155.34090579,0.00039483,2]
[314185179,1708053044170,-674.31378256,0.00039483,2]
[314185180,1708053044181,-204.82545901,0.00039483,90]
[314185181,1708053044193,-496.73292102,0.00039483,15]
[314185182,1708053044204,-153.3577987,0.00039483,30]
[314185183,1708053044214,-319.48620703,0.00039483,120]
[314185184,1708053044227,-281.10631617,0.00039483,120]
[314185185,1708053044237,-9200.02602974,0.00039483,4]
[314185186,1708053044249,-8112.85376153,0.00039483,10]
[314185187,1708053044260,-588.75047351,0.00039483,120]
[314185188,1708053044273,-162.06747569,0.00039483,30]
[314185189,1708053044285,-155.44208196,0.00039483,2]
[314185190,1708053044294,-20008.10601824,0.00039483,2]
[314185191,1708053044304,-177.60946344,0.00039483,30]
[314185192,1708053044314,-151.47013554,0.00039483,30]
[314185193,1708053044328,-444.47986482,0.00039483,120]
[314185194,1708053044339,-243.42012289,0.00039483,30]
[314185195,1708053044349,-259.92686036,0.00039483,120]
[314185196,1708053044362,-155.71210622,0.00039483,30]
[314185197,1708053044373,-83136.67887586,0.00039483,120]
[314185198,1708053044385,-50765.14878279,0.00039483,2]
[314185199,1708053044395,-205.39995957,0.00039483,120]
[314185200,1708053044406,-422.89775243,0.00039483,2]
[314185201,1708053044417,-1801.19860144,0.00039483,120]
[314185202,1708053044428,-441.95851681,0.00039483,120]
[314185203,1708053044439,-53482.41611465,0.00039483,30]
[314185204,1708053044450,-151.0,0.00039483,30]
[314185205,1708053044462,-150.0,0.00039483,30]
[314185206,1708053044473,-197.19793628,0.00039483,30]
[314185207,1708053044484,-7067.0,0.00039483,14]
[314185208,1708053044496,-1004.7703,0.00039484,2]
[314185209,1708053044507,-500.0,0.00039485,31]
[314185210,1708053044520,-500.0,0.00039485,31]
[314185211,1708053044529,-500.0,0.00039485,31]
[314185212,1708053044539,-500.0,0.00039485,31]
[314185213,1708053044549,-500.0,0.00039485,31]
[314185214,1708053044558,-500.0,0.00039485,31]
[314185215,1708053044568,-362.43615779,0.00039485,31]
[314185216,1708053044580,-500.0,0.00039485,31]
[314185217,1708053044591,-500.0,0.00039485,31]
[314185218,1708053044602,-500.0,0.00039485,31]
[314185219,1708053044612,-500.0,0.00039485,31]
[314185220,1708053044624,-500.0,0.00039485,31]
[314185221,1708053044637,-500.0,0.00039485,31]
[314185222,1708053044648,-500.0,0.00039485,31]
[314185223,1708053044659,-500.0,0.00039485,31]
[314185224,1708053044670,-500.0,0.00039485,31]
[314185225,1708053044681,-470.73245259,0.00039485,31]
[314185226,1708053044690,-500.0,0.00039485,31]
[314185227,1708053044701,-500.0,0.00039485,31]
[314185228,1708053044711,-500.0,0.00039485,31]
[314185229,1708053044722,-500.0,0.00039485,31]
[314185230,1708053044734,-3007.0,0.000395,7]
[314185231,1708053044747,-1000.0,0.000395,7]
[314185232,1708053044758,-1281.9686549,0.00039506,2]
[314185233,1708053044769,-200.0,0.00039521,10]
[314185234,1708053044780,-157.52023726,0.00039537,9]
[314185235,1708053044792,-151.021624,0.00039548,25]
[314185236,1708053044803,-200.0,0.0003956,15]
[314185237,1708053044814,-800.0,0.0003956,15]
[314185238,1708053044825,-200.0,0.0003956,10]
[314185239,1708053044835,-200.0,0.0003956,20]
[314185240,1708053044846,-500.0,0.0003956,20]
[314185241,1708053044857,-200.0,0.0003956,20]
[314185242,1708053044867,-800.0,0.00039561,15]
[314185243,1708053044878,-200.0,0.00039561,20]
[314185244,1708053044890,-200.0,0.00039561,15]
[314185245,1708053044902,-800.0,0.00039561,15]
[314185246,1708053044913,-800.0,0.00039561,15]
[314185247,1708053044924,-800.0,0.00039561,15]
[314185248,1708053044935,-200.0,0.00039561,20]
[314185249,1708053044947,-200.0,0.00039561,20]
[314185250,1708053044958,-200.0,0.00039561,20]
[314185251,1708053044969,-500.0,0.00039561,20]
[314185252,1708053044979,-213.0,0.00039585,7]
[314185253,1708053044990,-500.0,0.00039586,2]
[314185254,1708053045002,-150.0,0.00039609,2]
[314185255,1708053045013,-1338.56975474,0.00039616,2]
[314185256,1708053045024,-150.0,0.00039621,2]
[314185257,1708053045037,-2228.47834375,0.00039626,2]
[314185258,1708053045047,-150.0,0.00039628,2]
[314185259,1708053045059,-403.08,0.0003963,2]
[314185260,1708053045071,-150.0,0.00039637,2]
[314185261,1708053045082,-151.021624,0.00039648,24]
[314185262,1708053045093,-1222.98041014,0.00039669,2]
[314185263,1708053045104,-150.0,0.00039672,2]
[314185264,1708053045114,-567.58661431,0.0003968,2]
[314185265,1708053045126,-1000.0,0.00039681,2]
[314185266,1708053045136,-1000.0,0.00039681,2]
[314185267,1708053045147,-1000.0,0.00039681,2]
[314185268,1708053045157,-1000.0,0.00039681,2]
[314185269,1708053045168,-206.0436,0.00039681,2]
[314185270,1708053045179,-453.84076438,0.00039682,9]
[314185271,1708053045190,-467.88239403,0.00039682,9]
[314185272,1708053045202,-75653.7244867,0.0003969,4]
[314185273,1708053045212,-173.51005992,0.0003969,2]
[314185274,1708053045223,-500.0,0.00039698,2]
[314185275,1708053045233,-155.01,0.000397,3]
[314185276,1708053045244,-569.45,0.000397,3]
[314185277,1708053045255,-569.45,0.000397,3]
[314185278,1708053045266,-569.45,0.000397,3]
[314185279,1708053045276,-569.45,0.000397,3]
[314185280,1708053045286,-569.45,0.000397,3]
[314185281,1708053045297,-569.45,0.000397,3]
[314185282,1708053045307,-569.45,0.000397,3]
[314185283,1708053045318,-569.45,0.000397,3]
[314185284,1708053045328,-569.45,0.000397,3]
[314185285,1708053045339,-569.45,0.000397,3]
[314185286,1708053045350,-569.45,0.000397,3]
[314185287,1708053045361,-569.45,0.000397,3]
[314185288,1708053045373,-569.45,0.000397,3]
[314185289,1708053045383,-569.45,0.000397,3]
[314185290,1708053045395,-569.45,0.000397,3]
[314185291,1708053045406,-569.45,0.000397,3]
[314185292,1708053045416,-569.45,0.000397,3]
[314185293,1708053045428,-569.45,0.000397,3]
[314185294,1708053045438,-569.45,0.000397,3]
[314185295,1708053045449,-569.45,0.000397,3]
[314185296,1708053045460,-1688.0,0.00039702,7]
[314185297,1708053045470,-1687.98,0.00039706,7]
[314185298,1708053045482,-150.0,0.00039707,2]
[314185299,1708053045494,-213.0,0.00039722,7]
[314185300,1708053045505,-1688.0,0.00039725,7]
[314185301,1708053045515,-1926.23,0.00039726,7]
[314185302,1708053045525,-500.0,0.00039726,7]
[314185303,1708053045536,-500.0,0.00039726,7]
[314185304,1708053045546,-500.0,0.00039726,7]
[314185305,1708053045557,-500.0,0.00039726,7]
[314185306,1708053045568,-500.0,0.00039726,7]
[314185307,1708053045578,-1321.96,0.00039726,7]
[314185308,1708053045589,-500.0,0.00039726,7]
[314185309,1708053045600,-623.74,0.00039726,7]
[314185310,1708053045611,-500.0,0.00039726,7]
[314185311,1708053045623,-500.0,0.00039726,7]
[314185312,1708053045637,-500.0,0.00039726,7]
[314185313,1708053045648,-578.19,0.00039726,7]
[314185314,1708053045659,-1023.77,0.00039726,7]
[314185316,1708053045843,-500.0,0.00039726,7]
[314185317,1708053045862,-500.0,0.00039726,7]
[314185318,1708053045872,-569.93,0.00039726,7]
[314185320,1708053045881,-5694.96,0.00039726,7]
[314185321,1708053045894,-500.0,0.00039726,7]
[314185322,1708053045903,-500.0,0.00039726,7]
[314185323,1708053045912,-5929.91,0.00039726,7]
[314185325,1708053045922,-1139.26,0.00039726,7]
[314185326,1708053045931,-500.0,0.00039726,7]
[314185327,1708053045940,-500.0,0.00039726,7]
[314185328,1708053045950,-500.0,0.00039726,7]
[314185329,1708053045960,-500.0,0.00039726,7]
[314185330,1708053045969,-500.0,0.00039726,7]
[314185331,1708053045978,-857.1,0.00039726,7]
[314185332,1708053045987,-500.0,0.00039726,7]
[314185333,1708053045997,-500.0,0.00039726,7]
[314185334,1708053046006,-500.0,0.00039726,7]
[314185335,1708053046016,-500.0,0.00039726,7]
[314185336,1708053046028,-500.0,0.00039726,7]
[314185337,1708053046037,-519.9,0.00039726,7]
[314185338,1708053046046,-500.0,0.00039726,7]
[314185339,1708053046055,-729.85,0.00039734,2]
[314185340,1708053046064,-663.93,0.00039734,7]
[314185341,1708053046075,-572.0,0.00039737,7]
[314185342,1708053046084,-342.0,0.00039737,7]
[314185343,1708053046093,-400.0,0.00039737,7]
[314185344,1708053046103,-150.0,0.00039737,7]
[314185345,1708053046113,-1688.0,0.00039744,7]
[314185346,1708053046123,-151.021624,0.00039748,24]
[314185347,1708053046132,-150.0,0.00039769,2]
[314185348,1708053046143,-2635.21525674,0.0003977,2]
[314185349,1708053046152,-393.0930504,0.00039778,2]
[314185350,1708053046163,-3933.0897,0.0003978,7]
[314185351,1708053046172,-528.7113703,0.0003978,2]
[314185352,1708053046182,-75653.7244867,0.0003978,5]
[314185353,1708053046191,-75653.7244867,0.0003979,5]
[314185354,1708053046200,-2012.0,0.0003979,2]
[314185355,1708053046209,-8016.30385688,0.00039799,13]
[314185356,1708053046218,-10000.0,0.000398,7]
[314185357,1708053046228,-80121.51251901,0.000398,2]
[314185358,1708053046237,-672.69,0.000398,30]
[314185359,1708053046246,-672.69,0.000398,2]
[314185360,1708053046256,-500.0,0.0003981,2]
[314185361,1708053046265,-2318.47315306,0.00039827,2]
[314185362,1708053046274,-147100.386632,0.0003984,2]
[314185363,1708053046283,-213.0,0.00039859,7]
[314185364,1708053046292,-3000.0,0.00039859,2]
[314185365,1708053046302,-5000.0,0.0003986,14]
[314185366,1708053046311,-1000.0,0.0003986,14]
[314185367,1708053046320,-209.19864569,0.00039863,7]
[314185368,1708053046330,-2751.6513528,0.00039877,2]
[314185369,1708053046339,-150.01,0.00039879,2]
[314185370,1708053046348,-3316.80182207,0.00039879,2]
[314185371,1708053046357,-150.0,0.00039879,2]
[314185372,1708053046366,-150.0,0.00039879,2]
[314185373,1708053046375,-401.00068974,0.0003988,3]
[314185375,1708053046384,-148467.54979755,0.0003988,2]
[314185377,1708053046394,-3267.62836697,0.0003988,2]
[314185378,1708053046403,-1031307.21567432,0.0003988,2]
[314185382,1708053046424,-411421.33888739,0.0003988,2]
[314185384,1708053046436,-195762.29624589,0.0003988,2]
[314185386,1708053046448,-3786.29157452,0.0003988,2]
[314185388,1708053046459,-2789.55325531,0.0003988,2]
[314185389,1708053046470,-1204.76842341,0.0003988,2]
[314185390,1708053046482,-1369.29431586,0.0003988,2]
[314185391,1708053046493,-579.74333511,0.0003988,2]
[314185392,1708053046504,-1645.99957587,0.0003988,2]
[314185393,1708053046515,-758.36707319,0.0003988,2]
[314185394,1708053046527,-941.43031319,0.0003988,2]
[314185395,1708053046538,-1504.008,0.0003988,2]
[314185396,1708053046621,-543.62108514,0.00038482,10]
[314185397,1708053046629,-124.17522351,0.0003863,7]
[314185398,1708053046655,-375.82477649,0.0003863,7]
[314185399,1708053046665,-500.0,0.00038904,7]
[314185400,1708053046674,-500.0,0.00039178,7]
[314185401,1708053046683,-500.0,0.00039452,7]
[314185402,1708053046692,-500.0,0.00039726,7]
[314185403,1708053046701,-3668.58569899,0.0003988,2]
[314185404,1708053046713,-4085.5789353,0.0003988,2]
[314185405,1708053046727,-5126.8903347,0.0003988,2]
[314185406,1708053046739,-3038.17531854,0.0003988,2]
[314185407,1708053046756,-727.84599298,0.0003988,2]
[314185408,1708053046767,-19777.86732454,0.0003988,2]
[314185409,1708053046779,-674.07,0.0003988,2]
[314185410,1708053046790,-1186.52026123,0.0003988,2]
[314185411,1708053046801,-4978.16417335,0.0003988,2]
[314185412,1708053046814,-880.54686907,0.0003988,2]
[314185413,1708053046826,-6226.20073029,0.0003988,2]
[314185414,1708053047040,-918.29282622,0.0003988,2]
[314185415,1708053047052,-401.21064498,0.0003988,2]
[314185416,1708053047066,-3077.6682786,0.0003988,2]
[314185417,1708053047077,-22433.42760846,0.0003988,2]
[314185418,1708053047099,-5158.02655053,0.0003988,2]
[314185419,1708053047130,-149943.00669422,0.0003988,2]
[314185420,1708053047146,-104110.04500402,0.0003988,2]
[314185421,1708053047157,-2000.0,0.0003988,2]
[314185422,1708053047166,-200.0,0.0003988,2]
[314185423,1708053047176,-160.775957,0.0003988,7]
[314185424,1708053047185,-151.0,0.0003988,7]
[314185425,1708053047196,-159.152164,0.0003988,7]
[314185426,1708053047206,-151.0,0.0003988,7]
[314185427,1708053047215,-151.0,0.0003988,7]
[314185428,1708053047225,-151.0,0.0003988,7]
[314185429,1708053047235,-200.0,0.0003988,2]
[314185430,1708053047244,-155.339249,0.0003988,7]
[314185431,1708053047254,-162.05141,0.0003988,7]
[314185432,1708053047263,-151.0,0.0003988,7]
[314185433,1708053047273,-151.0,0.0003988,7]
[314185434,1708053047282,-162.488831,0.0003988,7]
[314185435,1708053047291,-295.067064,0.0003988,7]
[314185436,1708053047302,-162.532779,0.0003988,7]
[314185437,1708053047312,-151.0,0.0003988,7]
[314185438,1708053047323,-151.0,0.0003988,7]
[314185439,1708053047334,-151.0,0.0003988,7]
[314185440,1708053047343,-163.791173,0.0003988,7]
[314185441,1708053047355,-151.0,0.0003988,7]
[314185442,1708053047365,-151.0,0.0003988,7]
[314185443,1708053047377,-151.0,0.0003988,7]
[314185444,1708053047390,-191.780324,0.0003988,7]
[314185445,1708053047400,-151.0,0.0003988,7]